[Event "NED-ch U20 Girls 2019"]
[Site "Assen"]
[Date "2019.04.30"]
[Round "3.1"]
[White "Waardenburg, Marlinde"]
[Black "Duson, Robin"]
[Result "0-1"]
[ECO "B23"]
[WhiteElo "1706"]
[BlackElo "1981"]
[Annotator "NA"]
[PlyCount "84"]
[EventDate "2019.04.28"]
[EventType "swiss"]
[EventCountry "NED"]
[SourceTitle "playchess.com"]
[Source "ChessBase"]
[SourceQuality "1"]
[TimeControl "40/5400+30:1800+30"]

1. e4 {[%emt 0:00:00]} c5 {[%emt 0:00:00]} 2. Nc3 {[%emt 0:00:00]} Nc6 {[%emt 0:00:00]} 3. f4 {[%emt 0:00:00]} g6 {[%emt 0:00:00]} 4. Nf3 {[%emt 0:00:41]} Bg7 {[%emt 0:00:04]} 5. Bc4 {[%emt 0:02:16]} e6 {[%emt 0:00:20]} 6. d3 {[%emt 0:01:34]} Nge7 {[%emt 0:00:48]} 7. O-O {[%emt 0:02:03]} O-O {[%emt 0:00:27]} 8. Bb3 {[%emt 0:01:35]} Na5 {[%emt 0:02:23]} 9. Qe1 {[%emt 0:01:45]} d6 {[%emt 0:00:14]} 10. f5 {[%emt 0:06:23]} Nxb3 {[%emt 0:06:07]} 11. axb3 {[%emt 0:00:56]} gxf5 {[%emt 0:03:06] B23: Closed Sicilian: Lines without g3} 12. Qg3 $146 {[%emt 0:11:26]} ({Predecessor:} 12. Qh4 Ng6 13. Qh5 f4 14. g3 fxg3 15. hxg3 f6 16. Kg2 Rf7 17. Bd2 Bd7 18. Rh1 Nf8 19. Raf1 {½-½ (40) Dumitru,M (1941)-Szocs,T (1920) Baile Felix 2017}) 12... fxe4 {[%emt 0:05:33]} (12... Kh8 $15) 13. dxe4 {[%emt 0:05:37]} Ng6 {[%emt 0:27:33]} 14. Qh3 {[%emt 0:13:23]} (14. Rd1 $14) 14... f6 {[%emt 0:05:18]} 15. Be3 {[%emt 0:09:41]} Qe7 {[%emt 0:03:19]} ({Better is} 15... b6 $1 $15) 16. Nh4 {[%emt 0:06:11]} (16. Qg3 $11 {keeps the balance.}) 16... Nxh4 {[%emt 0:07:28]} (16... Ne5 $15) 17. Qxh4 {[%emt 0:00:10]} Bd7 {[%emt 0:02:37]} 18. Rf3 {[%emt 0:02:38]} Be8 {[%emt 0:01:50]} 19. Qg3 {[%emt 0:05:27]} Bg6 {[%emt 0:10:55]} 20. h4 {[%emt 0:02:46]} a6 {[%emt 0:05:13]} 21. Re1 {[%emt 0:06:47]} Kh8 $17 {[%emt 0:01:22]} 22. Qh3 {[%emt 0:07:29]} Qe8 {[%emt 0:02:20]} 23. Rf2 {[%emt 0:01:51]} Rg8 {[%emt 0:05:13]} 24. Ref1 {[%emt 0:02:10]} f5 {[%emt 0:01:54]} 25. exf5 {[%emt 0:02:10]} Bxf5 {[%emt 0:00:13]} 26. Qf3 {[%emt 0:00:58]} Qc6 {[%emt 0:01:49]} 27. Qh5 {[%emt 0:03:24]} Be5 {[%emt 0:00:58]} 28. Bg5 {[%emt 0:02:06]} Bd4 {[%emt 0:02:00]} 29. Kh1 {[%emt 0:00:12]} Raf8 {[%emt 0:00:48]} 30. Rf3 {[%emt 0:00:46]} Bg6 {[%emt 0:00:56]} 31. Qg4 {[%emt 0:01:00]} Bf5 {[%emt 0:00:03]} 32. Qh5 {[%emt 0:00:21]} Qe8 {[%emt 0:02:22]} 33. Qxe8 {[%emt 0:00:57]} Rxe8 {[%emt 0:00:04]} 34. Ne2 {[%emt 0:01:17]} Be5 {[%emt 0:00:32]} 35. c3 {[%emt 0:00:25]} Be4 {[%emt 0:02:13]} 36. R3f2 {[%emt 0:00:26]} d5 {[%emt 0:01:58]} 37. Nf4 {[%emt 0:00:18]} Bxf4 {[%emt 0:00:00]} 38. Rxf4 {[%emt 0:00:18]} h6 {[%emt 0:00:00]} 39. Bf6+ {[%emt 0:00:19]} Kh7 {[%emt 0:00:04]} 40. R1f2 {[%emt 0:01:01]} e5 {[%emt 0:00:27]} 41. Bxe5 {[%emt 0:10:41]} Rxe5 {[%emt 0:00:10]} 42. Rf7+ {[%emt 0:00:25]} Rg7 {[%emt 0:00:11]} 0-1

[Event "NED-ch U20 Girls 2019"]
[Site "Assen"]
[Date "2019.04.30"]
[Round "3.2"]
[White "Waardenburg, Feline"]
[Black "Monteny, Pascalle"]
[Result "1/2-1/2"]
[ECO "D45"]
[WhiteElo "1742"]
[BlackElo "1433"]
[Annotator "NA"]
[PlyCount "102"]
[EventDate "2019.04.28"]
[EventType "swiss"]
[EventCountry "NED"]
[SourceTitle "playchess.com"]
[Source "ChessBase"]
[SourceQuality "1"]
[TimeControl "40/5400+30:1800+30"]

1. d4 {[%emt 0:00:00]} d5 {[%emt 0:00:00]} 2. c4 {[%emt 0:00:00]} e6 {[%emt 0:00:00]} 3. Nf3 {[%emt 0:00:00]} Nf6 {[%emt 0:00:08]} 4. Nc3 {[%emt 0:00:07]} c6 {[%emt 0:00:16]} 5. e3 {[%emt 0:00:11]} Nbd7 {[%emt 0:01:02]} 6. Qc2 {[%emt 0:00:51]} Be7 {[%emt 0:01:22]} 7. Be2 {[%emt 0:00:32]} O-O {[%emt 0:04:48]} 8. O-O {[%emt 0:00:24]} b6 {[%emt 0:07:17]} 9. Rd1 {[%emt 0:10:57]} Bb7 {[%emt 0:08:48]} 10. e4 {[%emt 0:08:17]} dxc4 {[%emt 0:16:57]} 11. Bxc4 {[%emt 0:02:10]} b5 {[%emt 0:01:57]} 12. Be2 {[%emt 0:03:36]} Rc8 {[%emt 0:08:40]} 13. Bf4 {[%emt 0:22:12]} Qb6 {[%emt 0:17:12]} 14. a3 {[%emt 0:07:19]} a5 {[%emt 0:09:00]} 15. Qb3 {[%emt 0:08:23]} Rfd8 {[%emt 0:07:29]} 16. h3 {[%emt 0:06:33]} Ba8 {[%emt 0:03:31]} 17. Rac1 {[%emt 0:02:41]} a4 {[%emt 0:02:26]} 18. Qa2 {[%emt 0:01:11]} Qb7 {[%emt 0:03:05]} 19. e5 {[%emt 0:08:01]} Nd5 {[%emt 0:01:05]} 20. Bd2 {[%emt 0:01:08]} N7b6 {[%emt 0:01:02]} 21. Ne4 {[%emt 0:00:53]} Nd7 {[%emt 0:02:10]} 22. Ba5 {[%emt 0:02:28]} Rf8 {[%emt 0:00:45]} 23. Rc2 {[%emt 0:00:44]} Qa6 {[%emt 0:00:20]} 24. Bd2 {[%emt 0:00:16]} Qb6 {[%emt 0:01:17]} 25. Rdc1 {[%emt 0:00:31]} Bb7 {[%emt 0:00:44]} 26. Qb1 {[%emt 0:00:41]} h6 {[%emt 0:00:42]} 27. b4 {[%emt 0:02:06]} axb3 {[%emt 0:00:43]} 28. Qxb3 {[%emt 0:00:06]} Ra8 {[%emt 0:00:27]} 29. Ra1 {[%emt 0:01:20]} Ra4 {[%emt 0:00:32]} 30. Nc3 {[%emt 0:01:12]} Nxc3 {[%emt 0:00:23]} 31. Qxc3 {[%emt 0:00:52]} Rfa8 {[%emt 0:00:23]} 32. Rca2 {[%emt 0:01:09]} Qa7 {[%emt 0:00:47]} 33. Bc1 {[%emt 0:00:44]} Nb6 {[%emt 0:00:34]} 34. Bd1 {[%emt 0:00:38]} Ra6 {[%emt 0:00:28]} 35. Nd2 {[%emt 0:01:33]} Nd5 {[%emt 0:00:25]} 36. Qg3 {[%emt 0:01:45]} Qxd4 {[%emt 0:00:39]} 37. Bh5 {[%emt 0:01:12]} Qf4 {[%emt 0:00:28]} 38. Qb3 {[%emt 0:00:36]} Qxe5 {[%emt 0:00:31]} 39. Bf3 {[%emt 0:01:12]} Qd6 {[%emt 0:00:33]} 40. Ne4 {[%emt 0:00:29]} Qc7 {[%emt 0:00:27]} 41. Bb2 {[%emt 0:05:23]} Ra4 {[%emt 0:11:50]} 42. Rc1 {[%emt 0:03:53]} Qf4 {[%emt 0:04:40]} 43. Nc3 {[%emt 0:02:55]} Nxc3 {[%emt 0:03:36]} 44. Rxc3 {[%emt 0:00:54]} Bf6 {[%emt 0:01:50]} 45. Bc1 {[%emt 0:00:50]} Qd4 {[%emt 0:04:37]} 46. Rd3 {[%emt 0:01:35]} Qc4 {[%emt 0:00:58]} 47. Qb1 {[%emt 0:01:51]} Rd8 {[%emt 0:05:53]} 48. Rxd8+ {[%emt 0:00:25]} Bxd8 {[%emt 0:00:02]} 49. Rd2 {[%emt 0:00:12]} Bf6 {[%emt 0:00:32]} 50. Bb2 {[%emt 0:00:48]} Qf4 {[%emt 0:01:01]} 51. Rd7 {[%emt 0:00:31]} Ba8 {[%emt 0:00:27]} 1/2-1/2

[Event "NED-ch U20 Girls 2019"]
[Site "Assen"]
[Date "2019.04.30"]
[Round "3.3"]
[White "Koning, Femke"]
[Black "Warnaar, Alisha"]
[Result "1/2-1/2"]
[ECO "B52"]
[WhiteElo "1566"]
[BlackElo "1910"]
[Annotator "NA"]
[PlyCount "76"]
[EventDate "2019.04.28"]
[EventType "swiss"]
[EventCountry "NED"]
[SourceTitle "playchess.com"]
[Source "ChessBase"]
[SourceQuality "1"]
[TimeControl "40/5400+30:1800+30"]

1. e4 {[%emt 0:00:00]} c5 {[%emt 0:00:00]} 2. Nf3 {[%emt 0:00:00]} d6 {[%emt 0:00:00]} 3. Bb5+ {[%emt 0:00:09]} Bd7 {[%emt 0:00:08]} 4. Bxd7+ {[%emt 0:00:45]} Qxd7 {[%emt 0:00:16]} 5. O-O {[%emt 0:01:09]} Nc6 {[%emt 0:01:07]} 6. c3 {[%emt 0:01:42]} Nf6 {[%emt 0:00:33]} 7. Re1 {[%emt 0:01:32]} g6 {[%emt 0:03:21]} 8. d4 {[%emt 0:05:46]} cxd4 {[%emt 0:01:31]} 9. cxd4 {[%emt 0:00:46]} Rc8 {[%emt 0:02:56]} 10. Nc3 {[%emt 0:01:49]} Bg7 {[%emt 0:02:52]} 11. Be3 {[%emt 0:11:17] B52: Sicilian: Moscow Variation with 3...Bd7} (11. h3 O-O 12. Bf4 Rfd8 13. e5 dxe5 14. dxe5 Nd5 15. Bd2 Nxc3 16. Bxc3 Qc7 17. Qb3 e6 18. Rad1 Rd7 19. Rxd7 Qxd7 {½-½ (26) Verat Fayolle,C (1882)-Claisse,P (1733) Montigny le Bretonneux 2018}) 11... O-O {[%emt 0:10:59]} 12. Rc1 {[%emt 0:04:26]} b6 $146 {[%emt 0:07:50]} ({Predecessor:} 12... Na5 13. b3 b5 14. e5 Ng4 15. Bf4 b4 16. Na4 dxe5 17. dxe5 Qf5 18. Qd2 Nc6 19. h3 Ngxe5 20. Bxe5 Nxe5 21. Nxe5 Bxe5 22. Qxb4 {1-0 (44) Ilkbahar,N (1501)-Aslan,L (1643) Konya 2016}) 13. a3 {[%emt 0:07:46]} Na5 {[%emt 0:06:37]} 14. Nd2 {[%emt 0:07:29]} Ng4 {[%emt 0:06:45]} 15. Qf3 {[%emt 0:06:12]} Nxe3 {[%emt 0:02:53]} 16. Qxe3 {[%emt 0:00:11]} Rfd8 {[%emt 0:15:05]} 17. b4 {[%emt 0:00:36]} Nc4 {[%emt 0:00:18]} 18. Nxc4 {[%emt 0:01:08]} Rxc4 {[%emt 0:00:05]} 19. Ne2 {[%emt 0:06:26]} Rdc8 {[%emt 0:01:26]} 20. Rxc4 {[%emt 0:01:24]} Rxc4 {[%emt 0:00:05]} 21. Rc1 {[%emt 0:01:09]} Qc7 {[%emt 0:01:07]} 22. Rxc4 {[%emt 0:03:39]} Qxc4 {[%emt 0:00:06]} 23. Kf1 {[%emt 0:02:11]} Qc2 {[%emt 0:03:12]} 24. f3 {[%emt 0:05:32]} Qb2 {[%emt 0:06:46]} (24... a5 $17) 25. Qd3 {[%emt 0:08:23]} Bh6 {[%emt 0:05:01]} 26. Qc3 $15 {[%emt 0:05:03]} Qxc3 {[%emt 0:01:23]} 27. Nxc3 {[%emt 0:00:01]} f5 {[%emt 0:02:55]} 28. Ke2 {[%emt 0:02:39]} fxe4 {[%emt 0:02:18]} 29. fxe4 {[%emt 0:00:45]} Kf7 {[%emt 0:01:47]} 30. a4 {[%emt 0:02:38]} Ke6 {[%emt 0:04:04]} 31. Nb5 {[%emt 0:03:09]} a5 {[%emt 0:00:52]} 32. bxa5 {[%emt 0:00:29]} bxa5 {[%emt 0:00:06]} 33. Na7 {[%emt 0:01:11]} d5 {[%emt 0:01:24]} 34. Kd3 {[%emt 0:01:34]} Bf4 {[%emt 0:02:40]} 35. Nc6 {[%emt 0:02:27]} dxe4+ {[%emt 0:02:59]} 36. Kxe4 {[%emt 0:00:03]} Bc7 {[%emt 0:00:37]} 37. h3 {[%emt 0:01:27]} Bb6 {[%emt 0:04:57]} 38. Ne5 {[%emt 0:01:11]} Bc7 {[%emt 0:01:11]} 1/2-1/2

[Event "NED-ch U20 Girls 2019"]
[Site "Assen"]
[Date "2019.04.30"]
[Round "3.4"]
[White "Van de Poel, Wyona"]
[Black "Basa, Manasvita"]
[Result "1-0"]
[ECO "C47"]
[WhiteElo "1584"]
[BlackElo "1532"]
[Annotator "NA"]
[PlyCount "101"]
[EventDate "2019.04.28"]
[EventType "swiss"]
[EventCountry "NED"]
[SourceTitle "playchess.com"]
[Source "ChessBase"]
[SourceQuality "1"]
[TimeControl "40/5400+30:1800+30"]

1. e4 {[%emt 0:00:00]} e5 {[%emt 0:00:00]} 2. Nf3 {[%emt 0:00:00]} Nc6 {[%emt 0:00:00]} 3. Nc3 {[%emt 0:00:15]} Nf6 {[%emt 0:00:00]} 4. d4 {[%emt 0:00:34]} exd4 {[%emt 0:00:06]} 5. Nxd4 {[%emt 0:00:08]} Bb4 {[%emt 0:08:35]} 6. Nxc6 {[%emt 0:01:59]} bxc6 {[%emt 0:00:08]} 7. Bd3 {[%emt 0:00:53]} O-O {[%emt 0:01:35]} 8. O-O {[%emt 0:02:39]} Bxc3 {[%emt 0:00:14]} 9. bxc3 {[%emt 0:00:18]} d5 {[%emt 0:05:42]} 10. e5 {[%emt 0:06:40]} Ne4 {[%emt 0:00:21]} 11. Qf3 {[%emt 0:16:41]} f5 {[%emt 0:05:03]} 12. c4 {[%emt 0:04:48]} Qe7 {[%emt 0:04:58]} 13. Bxe4 {[%emt 0:11:23]} fxe4 {[%emt 0:00:12]} 14. Qc3 {[%emt 0:00:17]} Rf5 {[%emt 0:12:55]} 15. Bb2 {[%emt 0:01:46]} Ba6 {[%emt 0:03:10]} 16. f4 {[%emt 0:09:09]} Bxc4 {[%emt 0:01:47]} 17. Rf2 {[%emt 0:00:51]} Raf8 {[%emt 0:01:06]} 18. Ba3 {[%emt 0:00:43]} c5 {[%emt 0:00:17]} 19. Qe3 {[%emt 0:01:13]} Qe6 {[%emt 0:27:36]} 20. Bxc5 {[%emt 0:04:33]} R8f7 {[%emt 0:00:08]} 21. g4 {[%emt 0:01:47]} Qg6 {[%emt 0:18:07]} 22. Qg3 {[%emt 0:02:45]} Qc6 {[%emt 0:00:32]} 23. Bxa7 {[%emt 0:03:11]} Qb7 {[%emt 0:02:10]} 24. Bd4 {[%emt 0:01:07]} c5 {[%emt 0:00:13]} 25. Bxc5 {[%emt 0:05:43]} Rc7 {[%emt 0:00:05]} 26. gxf5 {[%emt 0:00:50]} Rxc5 {[%emt 0:00:06]} 27. f6 {[%emt 0:01:02]} d4 {[%emt 0:00:56]} 28. Qxg7+ {[%emt 0:03:21]} Qxg7+ {[%emt 0:00:08]} 29. fxg7 {[%emt 0:00:03]} Kxg7 {[%emt 0:00:40]} 30. Rd1 {[%emt 0:02:15]} Rd5 {[%emt 0:01:50]} 31. e6 {[%emt 0:01:14]} Kf6 {[%emt 0:00:10]} 32. f5 {[%emt 0:00:30]} d3 {[%emt 0:01:32]} 33. cxd3 {[%emt 0:00:25]} Bxd3 {[%emt 0:00:33]} 34. Rf4 {[%emt 0:04:00]} e3 {[%emt 0:01:22]} 35. Re1 {[%emt 0:01:36]} e2 {[%emt 0:00:22]} 36. Kf2 {[%emt 0:02:48]} Ra5 {[%emt 0:00:09]} 37. a4 {[%emt 0:00:56]} Re5 {[%emt 0:00:45]} 38. Rf3 {[%emt 0:00:47]} Ba6 {[%emt 0:00:13]} 39. Re3 {[%emt 0:00:52]} Rxf5+ {[%emt 0:03:10]} 40. Rf3 {[%emt 0:00:06]} Rxf3+ {[%emt 0:00:24]} 41. Kxf3 {[%emt 0:30:05]} Kxe6 {[%emt 0:30:06]} 42. Rxe2+ {[%emt 0:00:17]} Bxe2+ {[%emt 0:00:12]} 43. Kxe2 {[%emt 0:00:05]} Kd5 {[%emt 0:00:10]} 44. Kf3 {[%emt 0:00:24]} Kc4 {[%emt 0:00:23]} 45. Kg4 {[%emt 0:00:23]} Kb4 {[%emt 0:00:14]} 46. h4 {[%emt 0:00:11]} Kxa4 {[%emt 0:00:08]} 47. Kg5 {[%emt 0:00:07]} Kb5 {[%emt 0:00:07]} 48. Kh6 {[%emt 0:00:03]} Kc6 {[%emt 0:00:11]} 49. Kxh7 {[%emt 0:00:03]} Kd7 {[%emt 0:00:06]} 50. Kg7 {[%emt 0:00:03]} Ke7 {[%emt 0:00:28]} 51. h5 {[%emt 0:00:07]} 1-0

[Event "NED-ch U20 Girls 2019"]
[Site "Assen"]
[Date "2019.05.01"]
[Round "4.1"]
[White "Duson, Robin"]
[Black "Waardenburg, Feline"]
[Result "1/2-1/2"]
[ECO "E57"]
[WhiteElo "1981"]
[BlackElo "1742"]
[Annotator "NA"]
[PlyCount "68"]
[EventDate "2019.04.28"]
[EventType "swiss"]
[EventCountry "NED"]
[SourceTitle "playchess.com"]
[Source "ChessBase"]
[SourceQuality "1"]
[TimeControl "40/5400+30:1800+30"]

1. d4 {[%emt 0:00:00]} Nf6 {[%emt 0:00:00]} 2. c4 {[%emt 0:00:00]} e6 {[%emt 0:00:00]} 3. Nc3 {[%emt 0:01:29]} Bb4 {[%emt 0:00:00]} 4. e3 {[%emt 0:02:40]} O-O {[%emt 0:02:20]} 5. Bd3 {[%emt 0:01:10]} c5 {[%emt 0:03:31]} 6. Nf3 {[%emt 0:03:01]} d5 {[%emt 0:07:36]} 7. O-O {[%emt 0:01:08]} Nc6 {[%emt 0:03:15]} 8. a3 {[%emt 0:07:17]} cxd4 {[%emt 0:05:11]} 9. exd4 {[%emt 0:01:04]} dxc4 {[%emt 0:02:56]} 10. Bxc4 {[%emt 0:00:36]} Bd6 {[%emt 0:02:10]} 11. Bg5 {[%emt 0:02:31]} h6 {[%emt 0:05:15]} 12. Bh4 {[%emt 0:02:07]} Be7 {[%emt 0:03:32]} 13. Qd3 {[%emt 0:13:52]} a6 {[%emt 0:06:49]} 14. Ba2 {[%emt 0:10:50]} b5 {[%emt 0:19:17]} 15. Rad1 {[%emt 0:03:30]} Bb7 {[%emt 0:04:10]} 16. Bb1 {[%emt 0:05:09]} g6 {[%emt 0:01:41]} 17. Ne5 {[%emt 0:05:35]} Nxe5 {[%emt 0:06:19]} 18. dxe5 {[%emt 0:00:07]} Nd5 {[%emt 0:00:59]} 19. Bxe7 {[%emt 0:02:37]} Qxe7 {[%emt 0:00:48]} 20. Ne4 {[%emt 0:01:17]} Rad8 {[%emt 0:02:38]} 21. Qg3 {[%emt 0:05:46]} Kg7 {[%emt 0:00:45]} 22. f4 {[%emt 0:03:45]} a5 {[%emt 0:03:37]} 23. Nd6 {[%emt 0:05:06]} Ba6 {[%emt 0:02:52]} 24. f5 {[%emt 0:04:41]} Qa7+ {[%emt 0:01:59]} 25. Rf2 {[%emt 0:00:30]} Ne3 {[%emt 0:03:04]} 26. Re1 {[%emt 0:03:25]} Nxf5 {[%emt 0:00:45]} 27. Bxf5 {[%emt 0:00:17]} exf5 {[%emt 0:00:11]} 28. Nxf5+ {[%emt 0:00:48]} Kh7 {[%emt 0:00:26]} 29. Qe3 {[%emt 0:03:18]} Qxe3 {[%emt 0:01:04]} 30. Nxe3 {[%emt 0:00:06]} b4 {[%emt 0:00:10]} 31. axb4 {[%emt 0:02:31]} axb4 {[%emt 0:00:24]} 32. Rf6 {[%emt 0:00:27]} Bc8 {[%emt 0:00:56]} 33. Rb6 {[%emt 0:02:08]} Rd4 {[%emt 0:01:18]} 34. Nc2 {[%emt 0:01:47]} Rd2 {[%emt 0:00:26]} 1/2-1/2

[Event "NED-ch U20 Girls 2019"]
[Site "Assen"]
[Date "2019.05.01"]
[Round "4.2"]
[White "Warnaar, Alisha"]
[Black "Monteny, Pascalle"]
[Result "0-1"]
[ECO "C45"]
[WhiteElo "1910"]
[BlackElo "1433"]
[Annotator "NA"]
[PlyCount "40"]
[EventDate "2019.04.28"]
[EventType "swiss"]
[EventCountry "NED"]
[SourceTitle "playchess.com"]
[Source "ChessBase"]
[SourceQuality "1"]
[TimeControl "40/5400+30:1800+30"]

1. e4 {[%emt 0:00:00]} e5 {[%emt 0:00:00]} 2. Nf3 {[%emt 0:00:00]} Nc6 {[%emt 0:00:00]} 3. d4 {[%emt 0:00:00]} exd4 {[%emt 0:00:00]} 4. Nxd4 {[%emt 0:00:00]} Bc5 {[%emt 0:00:17]} 5. Be3 {[%emt 0:00:08]} Qf6 {[%emt 0:00:15]} 6. c3 {[%emt 0:00:11]} Nge7 {[%emt 0:00:54]} 7. Bc4 {[%emt 0:00:11]} Ne5 {[%emt 0:00:56]} 8. Be2 {[%emt 0:00:09]} Qg6 {[%emt 0:00:50]} 9. O-O {[%emt 0:00:18]} d6 {[%emt 0:02:18]} 10. Nd2 {[%emt 0:00:16]} O-O {[%emt 0:04:41]} 11. f3 {[%emt 0:00:58]} d5 {[%emt 0:16:04]} 12. Kh1 {[%emt 0:00:48]} Bb6 {[%emt 0:05:28]} 13. Bf4 {[%emt 0:03:43]} f6 {[%emt 0:14:06]} 14. Bg3 {[%emt 0:01:35]} Qe8 {[%emt 0:14:37]} 15. f4 {[%emt 0:12:06]} N5c6 {[%emt 0:07:15]} 16. Nxc6 {[%emt 0:00:21]} Qxc6 {[%emt 0:01:19]} 17. exd5 {[%emt 0:03:57]} Nxd5 {[%emt 0:03:23]} 18. Qb3 {[%emt 0:01:44]} Be6 {[%emt 0:07:48]} 19. Bb5 {[%emt 0:01:55]} Ne3 {[%emt 0:07:39]} 20. c4 {[%emt 0:09:24]} Qxg2# {[%emt 0:00:25]} 0-1

[Event "NED-ch U20 Girls 2019"]
[Site "Assen"]
[Date "2019.05.01"]
[Round "4.3"]
[White "Koning, Femke"]
[Black "Van de Poel, Wyona"]
[Result "1/2-1/2"]
[ECO "B52"]
[WhiteElo "1566"]
[BlackElo "1584"]
[Annotator "NA"]
[PlyCount "56"]
[EventDate "2019.04.28"]
[EventType "swiss"]
[EventCountry "NED"]
[SourceTitle "playchess.com"]
[Source "ChessBase"]
[SourceQuality "1"]
[TimeControl "40/5400+30:1800+30"]

1. e4 {[%emt 0:00:00]} c5 {[%emt 0:00:00]} 2. Nf3 {[%emt 0:00:00]} d6 {[%emt 0:00:00]} 3. Bb5+ {[%emt 0:00:05]} Bd7 {[%emt 0:00:00]} 4. Bxd7+ {[%emt 0:00:30]} Qxd7 {[%emt 0:00:06]} 5. O-O {[%emt 0:00:54]} Nc6 {[%emt 0:00:36]} 6. c3 {[%emt 0:00:36]} Nf6 {[%emt 0:01:11]} 7. Re1 {[%emt 0:00:44]} e6 {[%emt 0:02:44]} 8. d4 {[%emt 0:01:59]} cxd4 {[%emt 0:00:49]} 9. cxd4 {[%emt 0:00:49]} d5 {[%emt 0:00:22]} 10. exd5 {[%emt 0:11:10]} Nxd5 {[%emt 0:01:19]} 11. Nbd2 {[%emt 0:08:41]} Be7 {[%emt 0:01:52]} 12. Nc4 {[%emt 0:01:11]} O-O {[%emt 0:12:04]} 13. b3 {[%emt 0:07:10]} Rfd8 {[%emt 0:07:28]} 14. Bb2 {[%emt 0:01:30]} Rac8 {[%emt 0:08:52]} 15. Rc1 {[%emt 0:06:33]} Nc7 {[%emt 0:08:04]} 16. Nfe5 {[%emt 0:06:35]} Qe8 {[%emt 0:03:06]} 17. Nxc6 {[%emt 0:01:52]} Qxc6 {[%emt 0:01:11]} 18. Ne5 {[%emt 0:02:24]} Qd5 {[%emt 0:07:03]} 19. Qg4 {[%emt 0:11:28]} Nb5 {[%emt 0:04:49]} 20. Rc4 {[%emt 0:03:54]} Ba3 {[%emt 0:05:03]} 21. Ba1 {[%emt 0:01:56]} Bf8 {[%emt 0:06:28]} 22. Rec1 {[%emt 0:03:17]} Nd6 {[%emt 0:04:40]} 23. Rc5 {[%emt 0:06:35]} Rxc5 {[%emt 0:01:54]} 24. Rxc5 {[%emt 0:01:21]} Rc8 {[%emt 0:02:15]} 25. Rxc8 {[%emt 0:06:30]} Nxc8 {[%emt 0:05:07]} 26. Qf3 {[%emt 0:02:45]} Qxf3 {[%emt 0:00:27]} 27. Nxf3 {[%emt 0:00:04]} f6 {[%emt 0:00:39]} 28. Kf1 {[%emt 0:00:32]} Bd6 {[%emt 0:01:13]} 1/2-1/2

[Event "NED-ch U20 Girls 2019"]
[Site "Assen"]
[Date "2019.05.01"]
[Round "4.4"]
[White "Basa, Manasvita"]
[Black "Waardenburg, Marlinde"]
[Result "1-0"]
[ECO "B03"]
[WhiteElo "1532"]
[BlackElo "1706"]
[Annotator "NA"]
[PlyCount "77"]
[EventDate "2019.04.28"]
[EventType "swiss"]
[EventCountry "NED"]
[SourceTitle "playchess.com"]
[Source "ChessBase"]
[SourceQuality "1"]
[TimeControl "40/5400+30:1800+30"]

1. e4 {[%emt 0:00:00]} Nf6 {[%emt 0:00:00]} 2. e5 {[%emt 0:00:00]} Nd5 {[%emt 0:00:00]} 3. d4 {[%emt 0:00:00]} d6 {[%emt 0:00:34]} 4. c4 {[%emt 0:00:00]} Nb6 {[%emt 0:00:21]} 5. exd6 {[%emt 0:00:00]} cxd6 {[%emt 0:00:12]} 6. Nc3 {[%emt 0:00:06]} g6 {[%emt 0:00:59]} 7. Be3 {[%emt 0:00:10]} Bg7 {[%emt 0:00:56]} 8. Nf3 {[%emt 0:00:07]} Bg4 {[%emt 0:03:33]} 9. Be2 {[%emt 0:00:09]} Nc6 {[%emt 0:02:32]} 10. b3 {[%emt 0:02:57]} O-O {[%emt 0:04:21]} 11. Rc1 {[%emt 0:00:11]} e5 {[%emt 0:14:46]} 12. dxe5 {[%emt 0:14:17]} dxe5 {[%emt 0:00:44]} 13. O-O {[%emt 0:04:49]} Nc8 {[%emt 0:22:24]} 14. h3 {[%emt 0:26:58]} Bf5 {[%emt 0:04:30]} 15. g4 {[%emt 0:08:04]} Be6 {[%emt 0:15:02]} 16. Ng5 {[%emt 0:08:42]} Nd4 {[%emt 0:04:08]} 17. Bf3 {[%emt 0:11:39]} Rb8 {[%emt 0:02:19]} 18. Bg2 {[%emt 0:04:24]} Bd7 {[%emt 0:05:30]} 19. f4 {[%emt 0:02:28]} Bc6 {[%emt 0:02:58]} 20. Nge4 {[%emt 0:06:17]} exf4 {[%emt 0:02:32]} 21. Bxf4 {[%emt 0:00:14]} Ra8 {[%emt 0:00:14]} 22. Qd2 {[%emt 0:01:17]} f5 {[%emt 0:04:12]} 23. gxf5 {[%emt 0:01:37]} Nxf5 {[%emt 0:00:11]} 24. Nd5 {[%emt 0:01:13]} Nce7 {[%emt 0:01:39]} 25. Bg5 {[%emt 0:01:20]} Bxd5 {[%emt 0:01:46]} 26. cxd5 {[%emt 0:00:06]} Qb6+ {[%emt 0:00:41]} 27. Kh1 {[%emt 0:00:32]} Kh8 {[%emt 0:02:58]} 28. Bf4 {[%emt 0:02:51]} Rac8 {[%emt 0:00:39]} 29. d6 {[%emt 0:00:48]} Nc6 {[%emt 0:00:30]} 30. Nc5 {[%emt 0:00:25]} Qb5 {[%emt 0:03:05]} 31. d7 {[%emt 0:00:44]} Ra8 {[%emt 0:00:20]} 32. Ne6 {[%emt 0:00:06]} Rg8 {[%emt 0:00:43]} 33. Nc7 {[%emt 0:00:10]} Qb6 {[%emt 0:00:26]} 34. Nxa8 {[%emt 0:00:06]} Rxa8 {[%emt 0:00:09]} 35. Rfe1 {[%emt 0:00:21]} Nfe7 {[%emt 0:00:47]} 36. Bg5 {[%emt 0:00:20]} Bf8 {[%emt 0:00:43]} 37. Bf6+ {[%emt 0:00:19]} Kg8 {[%emt 0:00:33]} 38. Bd5+ {[%emt 0:00:06]} Nxd5 {[%emt 0:00:26]} 39. Qxd5# {[%emt 0:00:44]} 1-0